[Event "44th Chess Olympiad Women 2022"]
[Site "Chennai"]
[Date "2022.08.08"]
[Round "10.15"]
[White "Kalaiyalahan, Akshaya"]
[Black "Mills, Morgen"]
[Result "1-0"]
[WhiteElo "2158"]
[BlackElo "1993"]
[Annotator "RC"]
[PlyCount "153"]
[EventDate "2022.??.??"]
[TimeControl "60"]

1. Nf3 {[%emt 0:00:04]} d5 {[%emt 0:00:20]} 2. e3 {[%emt 0:00:11]} Nf6 {
[%emt 0:01:29]} 3. c4 {[%emt 0:00:15]} e6 {[%emt 0:01:19]} 4. b3 {[%emt 0:00:
00]} c6 {[%emt 0:09:36]} 5. Bb2 {[%emt 0:00:15]} Nbd7 {[%emt 0:01:13]} 6. Qc2 {
[%emt 0:00:54]} Be7 {[%emt 0:00:54]} 7. Nc3 {[%emt 0:00:21]} b6 {[%emt 0:02:30]
} 8. d4 {[%emt 0:00:36]} Bb7 {[%emt 0:00:47]} 9. Bd3 {[%emt 0:00:15]} Rc8 {
[%emt 0:12:52]} 10. O-O {[%emt 0:01:47]} O-O {[%emt 0:00:16]} 11. Rad1 {
[%emt 0:01:40]} Qc7 {[%emt 0:02:52]} 12. h3 {[%emt 0:03:22]} h6 {[%emt 0:07:45]
} 13. Ne5 {[%emt 0:02:42]} dxc4 {[%emt 0:01:33]} 14. bxc4 {[%emt 0:08:55]} Nxe5
{[%emt 0:02:37]} 15. dxe5 {[%emt 0:00:05]} Nd7 {[%emt 0:00:06]} 16. f4 {
[%emt 0:00:22]} Nc5 {[%emt 0:03:17]} 17. Be2 {[%emt 0:01:00]} Rcd8 {[%emt 0:00:
00]} 18. Ba3 {[%emt 0:03:04]} Rxd1 {[%emt 0:03:51]} 19. Rxd1 {[%emt 0:00:18]}
Rd8 {[%emt 0:00:19]} 20. Rd4 {[%emt 0:03:07]} Na6 {[%emt 0:12:00]} 21. Bxe7 {
[%emt 0:01:00]} Qxe7 {[%emt 0:00:05]} 22. Qd2 {[%emt 0:00:20]} Rxd4 {[%emt 0:
00:00]} 23. exd4 {[%emt 0:00:25]} Qb4 {[%emt 0:01:04]} 24. Kf2 {[%emt 0:10:54]}
Nc7 {[%emt 0:01:28]} 25. Ne4 {[%emt 0:08:07]} c5 {[%emt 0:12:04]} 26. Qxb4 {
[%emt 0:08:49]} cxb4 {[%emt 0:00:04]} 27. Nd6 {[%emt 0:00:08]} Ba6 {[%emt 0:00:
00]} 28. Bf3 {[%emt 0:06:24]} Kf8 {[%emt 0:06:16]} 29. Bc6 {[%emt 0:00:15]} Ke7
{[%emt 0:00:23]} 30. Ke3 {[%emt 0:02:06]} f6 {[%emt 0:01:17]} 31. Kd2 {[%emt 0:
00:00]} Kd8 {[%emt 0:01:23]} 32. Kc2 {[%emt 0:03:34]} fxe5 {[%emt 0:00:32]} 33.
fxe5 {[%emt 0:00:05]} Bc8 {[%emt 0:00:29]} 34. Nxc8 {[%emt 0:04:09]} Kxc8 {
[%emt 0:00:05]} 35. d5 {[%emt 0:00:48]} a5 {[%emt 0:01:43]} 36. Kd2 {[%emt 0:
00:00]} Na6 {[%emt 0:01:10]} 37. Kc2 {[%emt 0:15:46]} Nc5 {[%emt 0:00:34]} 38.
h4 {[%emt 0:04:56]} Kc7 {[%emt 0:00:34]} 39. Be8 {[%emt 0:00:30]} Kd8 {[%emt 0:
00:00]} 40. Bc6 {[%emt 0:03:07]} Ne4 {[%emt 0:07:52]} 41. Kd3 {[%emt 0:06:09]}
Nc5+ {[%emt 0:04:55]} 42. Kc2 {[%emt 0:00:43]} Ke7 {[%emt 0:03:13]} 43. Kd2 {
[%emt 0:00:26]} a4 {[%emt 0:04:38]} 44. Kc2 {[%emt 0:02:55]} Kd8 {[%emt 0:00:
00]} 45. Bb5 {[%emt 0:00:35]} Kc7 {[%emt 0:03:21]} 46. Be8 {[%emt 0:00:13]} b3+
{[%emt 0:02:53]} 47. axb3 {[%emt 0:00:06]} axb3+ {[%emt 0:00:04]} 48. Kc3 {
[%emt 0:00:34]} b2 {[%emt 0:03:07]} 49. Kxb2 {[%emt 0:07:28]} Nd3+ {[%emt 0:00:
00]} 50. Kc3 {[%emt 0:00:13]} Nxe5 {[%emt 0:00:16]} 51. dxe6 {[%emt 0:00:45]}
Kd6 {[%emt 0:00:29]} 52. Bf7 {[%emt 0:01:39]} Nc6 {[%emt 0:01:39]} 53. h5 {
[%emt 0:02:17]} Nd8 {[%emt 0:02:51]} 54. Kb4 {[%emt 0:00:16]} Nc6+ {[%emt 0:00:
00]} 55. Kb5 {[%emt 0:01:28]} Ne5 {[%emt 0:00:38]} 56. e7 {[%emt 0:02:44]} Kxe7
{[%emt 0:00:18]} 57. Bd5 {[%emt 0:00:04]} Kd6 {[%emt 0:01:00]} 58. Kxb6 {
[%emt 0:00:16]} Nd7+ {[%emt 0:00:23]} 59. Kb5 {[%emt 0:00:16]} Nf6 {[%emt 0:00:
00]} 60. Bf3 {[%emt 0:00:12]} Nd7 {[%emt 0:00:16]} 61. Bg4 {[%emt 0:02:48]} Ne5
{[%emt 0:00:18]} 62. c5+ {[%emt 0:00:36]} Kc7 {[%emt 0:00:42]} 63. Bf3 {
[%emt 0:00:21]} g6 {[%emt 0:00:25]} 64. hxg6 {[%emt 0:00:12]} Nxg6 {[%emt 0:00:
00]} 65. Kc4 {[%emt 0:00:55]} Ne5+ {[%emt 0:01:00]} 66. Kd4 {[%emt 0:00:08]}
Nxf3+ {[%emt 0:00:33]} 67. gxf3 {[%emt 0:00:05]} h5 {[%emt 0:00:10]} 68. Ke4 {
[%emt 0:01:16]} h4 {[%emt 0:01:01]} 69. Kf4 {[%emt 0:00:04]} h3 {[%emt 0:00:12]
} 70. Kg3 {[%emt 0:00:03]} Kc6 {[%emt 0:00:48]} 71. Kxh3 {[%emt 0:00:04]} Kxc5
{[%emt 0:00:03]} 72. Kg4 {[%emt 0:00:13]} Kd6 {[%emt 0:00:14]} 73. Kf5 {
[%emt 0:01:26]} Ke7 {[%emt 0:00:09]} 74. Kg6 {[%emt 0:00:21]} Ke6 {[%emt 0:00:
00]} 75. f4 {[%emt 0:00:07]} Ke7 {[%emt 0:00:04]} 76. f5 {[%emt 0:00:07]} Kf8 {
[%emt 0:00:12]} 77. Kf6 {[%emt 0:00:05]} 1-0

[Event "44th Chess Olympiad Women 2022"]
[Site "Chennai"]
[Date "2022.08.08"]
[Round "10.15"]
[White "Toma, Katarzyna"]
[Black "Ouellet, Maili-Jade"]
[Result "1/2-1/2"]
[WhiteElo "2303"]
[BlackElo "2239"]
[Annotator "RC"]
[PlyCount "142"]
[EventDate "2022.??.??"]
[TimeControl "60"]

1. e4 {[%emt 0:00:03]} c5 {[%emt 0:00:04]} 2. Nf3 {[%emt 0:00:06]} d6 {[%emt 0:
00:00]} 3. d4 {[%emt 0:00:05]} cxd4 {[%emt 0:00:04]} 4. Nxd4 {[%emt 0:00:05]}
Nf6 {[%emt 0:00:06]} 5. Nc3 {[%emt 0:00:10]} a6 {[%emt 0:00:04]} 6. Bg5 {
[%emt 0:00:07]} Nbd7 {[%emt 0:00:05]} 7. Bc4 {[%emt 0:00:10]} Qb6 {[%emt 0:00:
00]} 8. O-O {[%emt 0:00:32]} Qc5 {[%emt 0:00:39]} 9. Bd5 {[%emt 0:00:17]} e6 {
[%emt 0:00:12]} 10. Re1 {[%emt 0:00:12]} Ne5 {[%emt 0:00:47]} 11. Bxf6 {
[%emt 0:26:31]} gxf6 {[%emt 0:00:09]} 12. Kh1 {[%emt 0:02:42]} h5 {[%emt 0:00:
00]} 13. Bb3 {[%emt 0:04:23]} Bd7 {[%emt 0:05:35]} 14. h3 {[%emt 0:04:56]} Bh6
{[%emt 0:11:23]} 15. Nce2 {[%emt 0:03:21]} Ng6 {[%emt 0:07:39]} 16. c3 {
[%emt 0:01:32]} Rg8 {[%emt 0:03:13]} 17. Ba4 {[%emt 0:08:28]} Rd8 {[%emt 0:00:
00]} 18. b4 {[%emt 0:05:32]} Qb6 {[%emt 0:08:26]} 19. Bxd7+ {[%emt 0:04:15]}
Rxd7 {[%emt 0:00:36]} 20. a4 {[%emt 0:01:58]} d5 {[%emt 0:11:28]} 21. exd5 {
[%emt 0:04:13]} Rxd5 {[%emt 0:00:53]} 22. Qb3 {[%emt 0:05:46]} Kf8 {[%emt 0:00:
00]} 23. Rad1 {[%emt 0:00:36]} Ne7 {[%emt 0:05:39]} 24. c4 {[%emt 0:08:31]} Re5
{[%emt 0:00:28]} 25. c5 {[%emt 0:00:56]} Qc7 {[%emt 0:00:33]} 26. Nf3 {[%emt 0:
00:00]} Rd5 {[%emt 0:00:57]} 27. Rxd5 {[%emt 0:01:11]} Nxd5 {[%emt 0:00:34]}
28. Ned4 {[%emt 0:01:05]} Nf4 {[%emt 0:01:30]} 29. Rg1 {[%emt 0:03:46]} Qc8 {
[%emt 0:00:26]} 30. c6 {[%emt 0:02:10]} bxc6 {[%emt 0:00:53]} 31. Qc4 {[%emt 0:
00:00]} e5 {[%emt 0:01:28]} 32. Qxc6 {[%emt 0:00:17]} Kg7 {[%emt 0:03:50]} 33.
Qxc8 {[%emt 0:03:36]} Rxc8 {[%emt 0:00:05]} 34. Nf5+ {[%emt 0:00:06]} Kh7 {
[%emt 0:00:07]} 35. Rd1 {[%emt 0:02:07]} Bf8 {[%emt 0:01:22]} 36. b5 {[%emt 0:
00:00]} axb5 {[%emt 0:00:05]} 37. axb5 {[%emt 0:00:03]} Rb8 {[%emt 0:00:40]}
38. Rd7 {[%emt 0:01:42]} Kg8 {[%emt 0:01:13]} 39. Nd2 {[%emt 0:02:10]} Rxb5 {
[%emt 0:01:22]} 40. Ne4 {[%emt 0:00:07]} Rb6 {[%emt 0:04:00]} 41. Kh2 {[%emt 0:
00:00]} Ng6 {[%emt 0:32:20]} 42. g3 {[%emt 0:01:37]} Re6 {[%emt 0:07:46]} 43.
Kg2 {[%emt 0:00:00]} Ra6 {[%emt 0:00:00]} 44. h4 {[%emt 0:00:00]} Re6 {[%emt 0:
00:00]} 45. Kf1 {[%emt 0:00:00]} Ra6 {[%emt 0:00:00]} 46. Ke2 {[%emt 0:00:00]}
Nh8 {[%emt 0:00:00]} 47. Rd8 {[%emt 0:00:00]} Ng6 {[%emt 0:00:00]} 48. Nfd6 {
[%emt 0:00:00]} Kh8 {[%emt 0:00:00]} 49. Nxf7+ {[%emt 0:00:00]} Kg7 {[%emt 0:
00:00]} 50. Nfd6 {[%emt 0:00:00]} Bxd6 {[%emt 0:00:00]} 51. Nxd6 {[%emt 0:00:
00]} Ne7 {[%emt 0:00:00]} 52. Rd7 {[%emt 0:00:00]} Kg6 {[%emt 0:00:00]} 53. Ne4
{[%emt 0:00:00]} Nf5 {[%emt 0:00:15]} 54. Kf3 {[%emt 0:00:00]} Ra3+ {[%emt 0:
00:00]} 55. Kg2 {[%emt 0:00:00]} Ra4 {[%emt 0:00:42]} 56. Nc3 {[%emt 0:00:00]}
Ra3 {[%emt 0:00:22]} 57. Nd5 {[%emt 0:00:00]} Ra5 {[%emt 0:01:09]} 58. Rd8 {
[%emt 0:01:53]} Kf7 {[%emt 0:00:51]} 59. Nc7 {[%emt 0:00:34]} Ra2 {[%emt 0:00:
00]} 60. Rd7+ {[%emt 0:00:21]} Kg6 {[%emt 0:00:54]} 61. Nd5 {[%emt 0:01:55]}
Ra5 {[%emt 0:00:21]} 62. Nc3 {[%emt 0:01:05]} Ra3 {[%emt 0:00:17]} 63. Rc7 {
[%emt 0:00:32]} Rb3 {[%emt 0:01:03]} 64. Rc8 {[%emt 0:01:43]} Rb2 {[%emt 0:00:
00]} 65. Nd5 {[%emt 0:00:47]} Rd2 {[%emt 0:00:25]} 66. Rc5 {[%emt 0:00:12]} Nd6
{[%emt 0:01:12]} 67. Nc3 {[%emt 0:00:42]} Nf5 {[%emt 0:01:08]} 68. Kf1 {
[%emt 0:00:29]} Rc2 {[%emt 0:01:00]} 69. Ne4 {[%emt 0:00:26]} Rxc5 {[%emt 0:00:
00]} 70. Nxc5 {[%emt 0:00:01]} Nd4 {[%emt 0:00:27]} 71. Kg2 {[%emt 0:00:43]} f5
{[%emt 0:00:34]} 1/2-1/2

[Event "44th Chess Olympiad Women 2022"]
[Site "Chennai"]
[Date "2022.08.08"]
[Round "10.16"]
[White "Hapala, Elisabeth"]
[Black "Savina, Anastasia"]
[Result "1/2-1/2"]
[WhiteElo "2113"]
[BlackElo "2377"]
[Annotator "RC"]
[PlyCount "64"]
[EventDate "2022.??.??"]
[TimeControl "60"]

1. e4 {[%emt 0:00:02]} c5 {[%emt 0:00:06]} 2. Nf3 {[%emt 0:00:04]} Nc6 {
[%emt 0:00:05]} 3. d4 {[%emt 0:00:03]} cxd4 {[%emt 0:00:04]} 4. Nxd4 {[%emt 0:
00:00]} e5 {[%emt 0:00:06]} 5. Nb5 {[%emt 0:00:08]} d6 {[%emt 0:00:05]} 6. c4 {
[%emt 0:00:14]} Be7 {[%emt 0:00:14]} 7. N1c3 {[%emt 0:00:23]} a6 {[%emt 0:00:
00]} 8. Na3 {[%emt 0:00:04]} f5 {[%emt 0:00:14]} 9. exf5 {[%emt 0:00:19]} Bxf5
{[%emt 0:00:04]} 10. Bd3 {[%emt 0:00:26]} Be6 {[%emt 0:00:06]} 11. O-O {
[%emt 0:05:12]} Nf6 {[%emt 0:00:04]} 12. Nc2 {[%emt 0:00:53]} O-O {[%emt 0:00:
00]} 13. b3 {[%emt 0:05:23]} Kh8 {[%emt 0:08:46]} 14. Ne3 {[%emt 0:12:48]} Qd7
{[%emt 0:05:02]} 15. Ncd5 {[%emt 0:03:05]} Rae8 {[%emt 0:03:43]} 16. Bb2 {
[%emt 0:11:02]} Bd8 {[%emt 0:02:22]} 17. Nxf6 {[%emt 0:03:25]} Rxf6 {[%emt 0:
00:00]} 18. Be4 {[%emt 0:15:03]} Bb6 {[%emt 0:04:25]} 19. Qd3 {[%emt 0:01:46]}
Qf7 {[%emt 0:15:09]} 20. Ba3 {[%emt 0:13:20]} Qh5 {[%emt 0:23:36]} 21. Nd5 {
[%emt 0:10:02]} Bxd5 {[%emt 0:17:13]} 22. Bxd5 {[%emt 0:00:06]} Ref8 {[%emt 0:
00:00]} 23. Bxc6 {[%emt 0:00:10]} bxc6 {[%emt 0:00:10]} 24. c5 {[%emt 0:00:35]}
dxc5 {[%emt 0:00:42]} 25. Qxa6 {[%emt 0:01:47]} Bc7 {[%emt 0:00:41]} 26. Qa7 {
[%emt 0:05:55]} Rg6 {[%emt 0:03:29]} 27. Qxc7 {[%emt 0:05:02]} Rxg2+ {[%emt 0:
00:00]} 28. Kxg2 {[%emt 0:00:02]} Qg4+ {[%emt 0:00:06]} 29. Kh1 {[%emt 0:00:01]
} Qf3+ {[%emt 0:00:06]} 30. Kg1 {[%emt 0:00:02]} Qg4+ {[%emt 0:00:42]} 31. Kh1
{[%emt 0:00:01]} Qf3+ {[%emt 0:00:02]} 32. Kg1 {[%emt 0:00:07]} Qg4+ {[%emt 0:
00:00]} 1/2-1/2

[Event "44th Chess Olympiad Women 2022"]
[Site "Chennai"]
[Date "2022.08.08"]
[Round "10.16"]
[White "Milliet, Sophie"]
[Black "Mayrhuber, Nikola"]
[Result "1-0"]
[WhiteElo "2396"]
[BlackElo "2141"]
[Annotator "RC"]
[PlyCount "75"]
[EventDate "2022.??.??"]
[TimeControl "60"]

1. e4 {[%emt 0:00:03]} c5 {[%emt 0:00:05]} 2. Nf3 {[%emt 0:00:05]} d6 {[%emt 0:
00:00]} 3. d4 {[%emt 0:00:06]} cxd4 {[%emt 0:00:06]} 4. Nxd4 {[%emt 0:00:03]}
Nf6 {[%emt 0:00:06]} 5. Nc3 {[%emt 0:00:03]} a6 {[%emt 0:00:05]} 6. Be3 {
[%emt 0:00:09]} e5 {[%emt 0:00:13]} 7. Nb3 {[%emt 0:00:09]} Be7 {[%emt 0:00:18]
} 8. f3 {[%emt 0:00:15]} Be6 {[%emt 0:00:09]} 9. Qd2 {[%emt 0:00:12]} h5 {
[%emt 0:00:34]} 10. Be2 {[%emt 0:00:40]} Nbd7 {[%emt 0:01:54]} 11. Nd5 {
[%emt 0:00:16]} Bxd5 {[%emt 0:01:56]} 12. exd5 {[%emt 0:00:06]} Qc7 {[%emt 0:
00:00]} 13. Rc1 {[%emt 0:00:19]} O-O {[%emt 0:05:47]} 14. O-O {[%emt 0:01:12]}
a5 {[%emt 0:08:44]} 15. c4 {[%emt 0:07:16]} Nh7 {[%emt 0:05:59]} 16. Na1 {
[%emt 0:04:53]} Qd8 {[%emt 0:01:47]} 17. Nc2 {[%emt 0:04:18]} Bg5 {[%emt 0:00:
00]} 18. f4 {[%emt 0:01:24]} exf4 {[%emt 0:06:46]} 19. Bxf4 {[%emt 0:00:04]} g6
{[%emt 0:06:24]} 20. Nd4 {[%emt 0:03:47]} Nc5 {[%emt 0:07:11]} 21. Nb5 {
[%emt 0:22:33]} Ne4 {[%emt 0:17:08]} 22. Qe3 {[%emt 0:02:19]} Re8 {[%emt 0:00:
00]} 23. Bxg5 {[%emt 0:01:04]} Nhxg5 {[%emt 0:03:56]} 24. Qf4 {[%emt 0:13:09]}
h4 {[%emt 0:03:43]} 25. Bd3 {[%emt 0:05:08]} f5 {[%emt 0:05:27]} 26. Kh1 {
[%emt 0:05:46]} Kg7 {[%emt 0:03:45]} 27. Qxh4 {[%emt 0:04:43]} Rh8 {[%emt 0:00:
00]} 28. Qf4 {[%emt 0:00:16]} Qb6 {[%emt 0:06:28]} 29. c5 {[%emt 0:16:24]} dxc5
{[%emt 0:00:22]} 30. Bc4 {[%emt 0:01:20]} Qf6 {[%emt 0:03:36]} 31. Rce1 {
[%emt 0:03:31]} Qxb2 {[%emt 0:02:55]} 32. Qc7+ {[%emt 0:00:24]} Kh6 {[%emt 0:
00:00]} 33. Qf4 {[%emt 0:03:16]} Qd2 {[%emt 0:00:21]} 34. Rxe4 {[%emt 0:00:20]}
Qxf4 {[%emt 0:04:31]} 35. Rexf4 {[%emt 0:00:01]} Ne4 {[%emt 0:00:07]} 36. Nc7 {
[%emt 0:00:17]} Kg5 {[%emt 0:00:45]} 37. Ne6+ {[%emt 0:00:41]} Kf6 {[%emt 0:00:
00]} 38. Rxe4 {[%emt 0:00:06]} 1-0

[Event "44th Chess Olympiad Women 2022"]
[Site "Chennai"]
[Date "2022.08.08"]
[Round "10.16"]
[White "Polterauer, Chiara"]
[Black "Guichard, Pauline"]
[Result "1/2-1/2"]
[WhiteElo "2183"]
[BlackElo "2379"]
[Annotator "RC"]
[PlyCount "82"]
[EventDate "2022.??.??"]
[TimeControl "60"]

1. e4 {[%emt 0:00:04]} e5 {[%emt 0:00:04]} 2. Nf3 {[%emt 0:00:04]} Nc6 {
[%emt 0:00:05]} 3. Bc4 {[%emt 0:00:04]} Bc5 {[%emt 0:00:06]} 4. c3 {[%emt 0:00:
00]} Nf6 {[%emt 0:00:07]} 5. d4 {[%emt 0:00:23]} exd4 {[%emt 0:00:30]} 6. cxd4
{[%emt 0:00:06]} Bb4+ {[%emt 0:00:19]} 7. Bd2 {[%emt 0:00:13]} Bxd2+ {[%emt 0:
00:00]} 8. Nbxd2 {[%emt 0:00:10]} d5 {[%emt 0:00:23]} 9. exd5 {[%emt 0:00:09]}
Nxd5 {[%emt 0:00:22]} 10. Qb3 {[%emt 0:01:18]} Nce7 {[%emt 0:01:02]} 11. O-O {
[%emt 0:00:43]} O-O {[%emt 0:01:27]} 12. Rfe1 {[%emt 0:01:51]} c6 {[%emt 0:00:
00]} 13. Ne4 {[%emt 0:03:17]} Ng6 {[%emt 0:08:28]} 14. Bxd5 {[%emt 0:09:51]}
cxd5 {[%emt 0:05:05]} 15. Nc5 {[%emt 0:02:11]} b6 {[%emt 0:02:24]} 16. Nd3 {
[%emt 0:00:08]} Bf5 {[%emt 0:07:52]} 17. Nde5 {[%emt 0:08:48]} Rc8 {[%emt 0:00:
00]} 18. Nxg6 {[%emt 0:08:24]} hxg6 {[%emt 0:02:17]} 19. Re5 {[%emt 0:01:25]}
Qf6 {[%emt 0:15:38]} 20. Rae1 {[%emt 0:09:39]} Bg4 {[%emt 0:07:57]} 21. Ng5 {
[%emt 0:06:19]} Qf4 {[%emt 0:00:57]} 22. Qxd5 {[%emt 0:30:24]} Bf5 {[%emt 0:00:
00]} 23. Nf3 {[%emt 0:07:39]} Rfd8 {[%emt 0:01:39]} 24. Qb7 {[%emt 0:02:24]}
Bg4 {[%emt 0:01:17]} 25. Ng5 {[%emt 0:01:25]} Rc1 {[%emt 0:00:52]} 26. Qe7 {
[%emt 0:01:30]} Rxe1+ {[%emt 0:05:18]} 27. Rxe1 {[%emt 0:00:04]} Rf8 {[%emt 0:
00:00]} 28. d5 {[%emt 0:01:08]} Qd2 {[%emt 0:02:53]} 29. d6 {[%emt 0:02:04]} f6
{[%emt 0:01:41]} 30. Nf3 {[%emt 0:00:15]} Bxf3 {[%emt 0:00:11]} 31. gxf3 {
[%emt 0:00:03]} Qg5+ {[%emt 0:06:20]} 32. Kh1 {[%emt 0:01:24]} Qd5 {[%emt 0:00:
00]} 33. d7 {[%emt 0:01:24]} Qxf3+ {[%emt 0:02:05]} 34. Kg1 {[%emt 0:00:04]}
Qg4+ {[%emt 0:01:51]} 35. Kf1 {[%emt 0:00:24]} Qc4+ {[%emt 0:02:28]} 36. Kg1 {
[%emt 0:00:23]} Qg4+ {[%emt 0:00:05]} 37. Kf1 {[%emt 0:00:07]} Qc4+ {[%emt 0:
00:00]} 38. Re2 {[%emt 0:00:11]} Qc1+ {[%emt 0:00:15]} 39. Kg2 {[%emt 0:00:19]}
Qg5+ {[%emt 0:00:26]} 40. Kf1 {[%emt 0:00:45]} Qc1+ {[%emt 0:00:09]} 41. Re1 {
[%emt 0:31:34]} Qc4+ {[%emt 0:04:20]} 1/2-1/2

[Event "44th Chess Olympiad Women 2022"]
[Site "Chennai"]
[Date "2022.08.08"]
[Round "10.16"]
[White "Sebag, Marie"]
[Black "Newrkla, Katharina"]
[Result "1-0"]
[WhiteElo "2447"]
[BlackElo "2265"]
[Annotator "RC"]
[PlyCount "79"]
[EventDate "2022.??.??"]
[TimeControl "60"]

1. e4 {[%emt 0:00:34]} c5 {[%emt 0:00:05]} 2. Nf3 {[%emt 0:00:05]} d6 {[%emt 0:
00:00]} 3. Bb5+ {[%emt 0:00:08]} Nd7 {[%emt 0:00:04]} 4. a4 {[%emt 0:00:24]}
Ngf6 {[%emt 0:01:06]} 5. Nc3 {[%emt 0:07:22]} g6 {[%emt 0:01:44]} 6. a5 {
[%emt 0:03:53]} Bg7 {[%emt 0:03:15]} 7. O-O {[%emt 0:03:25]} a6 {[%emt 0:02:14]
} 8. Be2 {[%emt 0:00:57]} O-O {[%emt 0:03:57]} 9. d3 {[%emt 0:00:54]} b5 {
[%emt 0:02:08]} 10. axb6 {[%emt 0:03:34]} Bb7 {[%emt 0:02:28]} 11. Qd2 {
[%emt 0:06:02]} a5 {[%emt 0:20:49]} 12. Qf4 {[%emt 0:06:06]} Qxb6 {[%emt 0:00:
00]} 13. Qh4 {[%emt 0:04:06]} Bc6 {[%emt 0:03:49]} 14. Nd2 {[%emt 0:24:30]} a4
{[%emt 0:13:04]} 15. Nc4 {[%emt 0:01:53]} Qc7 {[%emt 0:00:23]} 16. Bh6 {
[%emt 0:07:20]} Nb6 {[%emt 0:08:47]} 17. Ne3 {[%emt 0:02:43]} Bxh6 {[%emt 0:00:
00]} 18. Qxh6 {[%emt 0:00:07]} d5 {[%emt 0:01:04]} 19. exd5 {[%emt 0:02:57]}
Nbxd5 {[%emt 0:01:11]} 20. Ncxd5 {[%emt 0:02:34]} Nxd5 {[%emt 0:00:33]} 21. Bf3
{[%emt 0:00:29]} Nb4 {[%emt 0:08:43]} 22. Bxc6 {[%emt 0:01:50]} Nxc6 {[%emt 0:
00:00]} 23. f4 {[%emt 0:04:04]} f5 {[%emt 0:07:03]} 24. Nc4 {[%emt 0:01:15]}
Qd7 {[%emt 0:06:45]} 25. Rae1 {[%emt 0:01:31]} Qd4+ {[%emt 0:01:45]} 26. Kh1 {
[%emt 0:00:07]} Rab8 {[%emt 0:01:21]} 27. Qh4 {[%emt 0:08:18]} Rf6 {[%emt 0:00:
00]} 28. Qf2 {[%emt 0:01:04]} Qxf2 {[%emt 0:00:39]} 29. Rxf2 {[%emt 0:00:06]}
Kf8 {[%emt 0:00:16]} 30. g3 {[%emt 0:00:47]} Nd4 {[%emt 0:00:27]} 31. Re5 {
[%emt 0:02:23]} Ra6 {[%emt 0:00:28]} 32. Rxc5 {[%emt 0:00:42]} Rxb2 {[%emt 0:
00:00]} 33. Nxb2 {[%emt 0:02:24]} a3 {[%emt 0:00:04]} 34. Na4 {[%emt 0:01:02]}
Rxa4 {[%emt 0:01:33]} 35. Rf1 {[%emt 0:00:08]} a2 {[%emt 0:00:32]} 36. Ra1 {
[%emt 0:00:09]} Ra3 {[%emt 0:00:32]} 37. Kg2 {[%emt 0:01:18]} Ke8 {[%emt 0:00:
00]} 38. Kf2 {[%emt 0:00:36]} Ne6 {[%emt 0:00:24]} 39. Rc4 {[%emt 0:00:36]} Kd7
{[%emt 0:00:13]} 40. Rb4 {[%emt 0:00:24]} 1-0

[Event "44th Chess Olympiad Women 2022"]
[Site "Chennai"]
[Date "2022.08.08"]
[Round "10.17"]
[White "Gazola, Vanessa Ramos"]
[Black "Koubova, Anna Marie"]
[Result "1/2-1/2"]
[WhiteElo "2000"]
[BlackElo "2115"]
[Annotator "NA RC"]
[PlyCount "167"]
[EventDate "2022.??.??"]
[TimeControl "60"]

1. d4 {[%emt 0:00:05]} Nf6 {[%emt 0:00:14]} 2. c4 {[%emt 0:00:24]} e6 {[%emt 0:
00:00]} 3. Nf3 {[%emt 0:00:20]} b6 {[%emt 0:00:22]} 4. a3 {[%emt 0:00:43]} Bb7
{[%emt 0:00:18]} 5. Nc3 {[%emt 0:00:09]} g6 {[%emt 0:00:25]} 6. Bf4 {[%emt 0:
00:00]} d6 {[%emt 0:04:08]} 7. e3 {[%emt 0:01:48]} Bg7 {[%emt 0:01:55]} 8. Be2
{[%emt 0:00:40]} O-O {[%emt 0:05:39]} 9. O-O {[%emt 0:02:49]} Nbd7 {[%emt 0:00:
00]} 10. h3 {[%emt 0:05:51]} Qe7 {[%emt 0:03:03]} 11. Bg5 {[%emt 0:02:15]} Rfd8
{[%emt 0:07:42]} 12. d5 {[%emt 0:03:22]} c6 {[%emt 0:07:03]} 13. dxc6 {[%emt 0:
00:00]} Bxc6 {[%emt 0:00:36]} 14. Nd4 {[%emt 0:00:09]} Bb7 {[%emt 0:01:33]} 15.
Bf3 {[%emt 0:03:31]} Ne5 {[%emt 0:06:09]} 16. Bxb7 {[%emt 0:01:46]} Qxb7 {
[%emt 0:04:37]} 17. b3 {[%emt 0:01:06]} Rac8 {[%emt 0:04:24]} 18. Rc1 {[%emt 0:
00:00]} Rd7 {[%emt 0:03:49]} 19. Qe2 {[%emt 0:07:21]} a6 {[%emt 0:12:59]} 20.
Bf4 {[%emt 0:06:01]} Rdc7 {[%emt 0:06:16]} 21. a4 {[%emt 0:02:53]} Nfd7 {
[%emt 0:03:27]} 22. Na2 {[%emt 0:05:39]} Nc5 {[%emt 0:02:54]} 23. Rcd1 {
[%emt 0:01:16]} Rd7 {[%emt 0:15:35]} 24. Nc1 {[%emt 0:07:35]} d5 {[%emt 0:00:
00]} 25. cxd5 {[%emt 0:06:02]} Rxd5 {[%emt 0:00:24]} 26. Nf3 {[%emt 0:00:57]}
Nxf3+ {[%emt 0:03:42]} 27. Qxf3 {[%emt 0:00:22]} Rcd8 {[%emt 0:00:15]} 28. Rxd5
{[%emt 0:06:34]} Qxd5 {[%emt 0:00:07]} 29. Qxd5 {[%emt 0:00:04]} Rxd5 {[%emt 0:
00:00]} 30. Bc7 {[%emt 0:00:05]} b5 {[%emt 0:00:37]} 31. axb5 {[%emt 0:00:56]}
axb5 {[%emt 0:00:04]} 32. b4 {[%emt 0:00:50]} Na6 {[%emt 0:01:27]} 33. Ba5 {
[%emt 0:00:31]} Rd2 {[%emt 0:01:20]} 34. Nb3 {[%emt 0:03:02]} Rb2 {[%emt 0:00:
00]} 35. Nc5 {[%emt 0:02:20]} Nxb4 {[%emt 0:00:38]} 36. Rd1 {[%emt 0:00:07]}
Nc6 {[%emt 0:00:41]} 37. Bb6 {[%emt 0:01:28]} Ra2 {[%emt 0:00:28]} 38. g3 {
[%emt 0:00:21]} Ra1 {[%emt 0:00:33]} 39. Rxa1 {[%emt 0:00:17]} Bxa1 {[%emt 0:
00:00]} 40. Kf1 {[%emt 0:00:07]} Kf8 {[%emt 0:00:50]} 41. Ke2 {[%emt 0:35:04]}
Ke7 {[%emt 0:04:01]} 42. Nb3 {[%emt 0:00:00]} Be5 {[%emt 0:03:46]} 43. f4 {
[%emt 0:00:00]} Bb2 {[%emt 0:03:53]} 44. Bc5+ {[%emt 0:00:00]} Kd7 {[%emt 0:00:
00]} 45. Kd3 {[%emt 0:00:00]} Kc7 {[%emt 0:05:03]} 46. e4 {[%emt 0:00:00]} Kb7
{[%emt 0:03:46]} 47. e5 {[%emt 0:00:00]} b4 {[%emt 0:02:38]} 48. Nd2 {[%emt 0:
00:00]} Ka6 {[%emt 0:01:57]} 49. Nc4 {[%emt 0:00:00]} Bc3 {[%emt 0:05:30]} 50.
Nd6 {[%emt 0:00:00]} Nd8 {[%emt 0:00:19]} 51. Ne4 {[%emt 0:00:00]} Kb5 {
[%emt 0:03:30]} 52. Be7 {[%emt 0:00:00]} Nc6 {[%emt 0:00:08]} 53. Nxc3+ {
[%emt 0:00:00]} bxc3 {[%emt 0:00:27]} 54. Bd6 {[%emt 0:00:00]} c2 {[%emt 0:00:
00]} 55. Kxc2 {[%emt 0:00:00]} Kc4 {[%emt 0:01:48]} 56. Kd2 {[%emt 0:00:00]}
Kd4 {[%emt 0:00:24]} 57. Ke2 {[%emt 0:00:00]} Ke4 {[%emt 0:00:05]} 58. h4 {
[%emt 0:00:00]} Nd4+ {[%emt 0:01:04]} 59. Kf2 {[%emt 0:00:00]} Nb5 {[%emt 0:00:
00]} 60. Bb4 {[%emt 0:00:00]} Kf5 {[%emt 0:00:25]} 61. Kg2 {[%emt 0:03:17]} Kg4
{[%emt 0:00:08]} 62. Bd2 {[%emt 0:01:27]} Nd4 {[%emt 0:00:16]} 63. Be3 {
[%emt 0:01:33]} Ne2 {[%emt 0:00:44]} 64. Bf2 {[%emt 0:00:05]} Nc3 {[%emt 0:00:
00]} 65. Be1 {[%emt 0:02:23]} Ne4 {[%emt 0:00:10]} 66. Kh2 {[%emt 0:00:01]} h6
{[%emt 0:00:55]} 67. Kg2 {[%emt 0:00:18]} g5 {[%emt 0:00:59]} 68. hxg5 {
[%emt 0:02:30]} hxg5 {[%emt 0:00:04]} 69. fxg5 {[%emt 0:00:13]} Kxg5 {[%emt 0:
00:00]} 70. Kf3 {[%emt 0:04:16]} Kf5 {[%emt 0:00:10]} 71. Ba5 {[%emt 0:00:05]}
Ng5+ {[%emt 0:00:53]} 72. Ke3 {[%emt 0:00:19]} Kxe5 {[%emt 0:00:13]} 73. Bd8 {
[%emt 0:00:13]} Ne4 {[%emt 0:00:38]} 74. Bc7+ {[%emt 0:00:28]} Kd5 {[%emt 0:00:
00]} 75. Kf4 {[%emt 0:00:33]} Nd6 {[%emt 0:00:25]} 76. g4 {[%emt 0:01:25]} e5+
{[%emt 0:00:30]} 77. Kg5 {[%emt 0:00:21]} e4 {[%emt 0:00:44]} 78. Ba5 {[%emt 0:
00:00]} Ne8 {[%emt 0:00:49]} 79. Kf5 {[%emt 0:00:34]} Kd4 {[%emt 0:00:27]} 80.
g5 {[%emt 0:00:04]} Kd3 {[%emt 0:00:42]} 81. Bb6 {[%emt 0:01:06]} e3 {[%emt 0:
00:00]} 82. Bxe3 {[%emt 0:00:12]} Kxe3 {[%emt 0:00:04]} 83. g6 {[%emt 0:00:03]}
fxg6+ {[%emt 0:00:34]} 84. Kxg6 {[%emt 0:00:33]} 1/2-1/2